bitfinex/quotes_ETHUSD_20251021
["timestamp","ask_amount","ask_price","bid_price","bid_amount"]
[1761047883580,44.46344287,3899.3,3898.9,0.441]
[1761047883966,44.46344287,3899.3,3899.2,0.441]
[1761047884166,44.99634907,3899.3,3899.2,0.441]
[1761047884482,44.99634907,3899.3,3899.2,0.002]
[1761047884649,46.53949231,3899.3,3899.2,0.002]
[1761047885579,16.53949231,3899.3,3899.2,0.002]
[1761047885779,46.53949231,3899.3,3899.2,0.002]
[1761047885971,46.53949231,3899.3,3899.2,0.441]
[1761047887283,40.02042512,3899.3,3899.2,0.441]
[1761047887656,53.37067012,3899.3,3899.2,0.441]
[1761047893184,51.64267012,3899.3,3899.2,0.441]
[1761047893471,32.57709712,3899.3,3899.2,0.441]
[1761047893696,28.90361168,3899.3,3899.2,0.441]
[1761047893895,41.82841674,3899.3,3899.2,0.441]
[1761047894485,37.01195374,3899.3,3899.2,0.441]
[1761047894994,36.88138974,3899.3,3899.2,0.441]
[1761047895195,12.63190593,3899.3,3899.2,0.441]
[1761047895386,15.01495687,3899.3,3899.2,0.441]
[1761047895590,17.14527631,3899.3,3899.2,0.441]
[1761047895901,28.17271587,3899.3,3899.2,0.441]
[1761047896104,16.22174887,3899.3,3899.2,0.441]
[1761047896410,12.22956287,3899.3,3899.2,0.441]
[1761047896570,13.95756287,3899.3,3899.2,0.441]
[1761047897105,8.158,3899.3,3899.2,0.441]
[1761047897607,6.43,3899.3,3899.2,0.882]
[1761047898406,3.236,3900.0,3899.2,0.882]
[1761047898610,3.236,3900.0,3899.3,0.4353]
[1761047898799,5.80010744,3900.0,3899.3,0.4353]
[1761047898999,5.80010744,3900.0,3899.3,0.46094562]
[1761047899202,5.80010744,3900.0,3899.3,0.4353]
[1761047899583,5.80010744,3900.0,3899.4,0.77128852]
[1761047899779,3.236,3900.0,3899.4,0.77128852]
[1761047899986,5.80010425,3900.0,3899.5,0.4353]
[1761047900312,3.236,3900.0,3899.5,0.4353]
[1761047900515,2.56435482,3899.7,3899.5,0.4353]
[1761047902286,8.101071,3899.7,3899.5,0.4353]
[1761047902785,7.101071,3899.7,3899.5,0.4353]
[1761047903509,9.66537402,3899.7,3899.5,0.4353]
[1761047903680,2.56430302,3899.7,3899.5,0.4353]
[1761047904008,2.56436557,3899.6,3899.5,0.4353]
[1761047904183,11.8616087,3899.7,3899.6,0.77128852]
[1761047904385,15.0956087,3899.7,3899.6,0.77128852]
[1761047904585,15.0956087,3899.7,3899.6,1.20658852]
[1761047904916,15.0956087,3899.7,3899.6,0.4353]
[1761047905724,19.41565888,3899.7,3899.6,0.4353]
[1761047906325,4.29243133,3899.5,3899.4,0.002]
[1761047907124,4.29243133,3899.5,3899.4,0.4373]
[1761047908096,24.77757133,3899.5,3899.4,0.002]
[1761047909100,34.66985677,3899.5,3899.4,0.002]
[1761047909429,16.02184595,3899.5,3899.4,0.002]
[1761047909748,10.44955595,3899.5,3899.4,0.4373]
[1761047910037,20.57907495,3899.5,3899.4,0.4373]
[1761047910511,6.88448151,3899.5,3899.4,0.4373]
[1761047912025,4.29243133,3899.5,3899.4,0.4373]
[1761047916268,1.728,3899.5,3899.4,0.4373]
[1761047916474,3.234,3899.7,3899.4,0.4373]
[1761047916475,1.728,3899.6,3899.4,0.4373]
[1761047916678,1.728,3899.6,3899.4,0.8766]
[1761047917297,1.728,3899.6,3899.5,0.4293]
[1761047920260,3.234,3899.7,3899.5,0.4293]
[1761047920641,3.234,3899.7,3899.5,0.8706]
[1761047921100,4.962,3899.7,3899.6,0.4293]
[1761047921904,3.235,3899.8,3899.6,0.4293]
[1761047922070,3.235,3899.8,3899.6,0.8706]
[1761047922597,3.235,3899.8,3899.7,0.4293]
[1761047922796,0.001,3899.8,3899.7,1.200533]
[1761047924768,0.001,3899.8,3899.7,1.22617599]
[1761047925698,0.001,3899.8,3899.7,1.200533]
[1761047929689,0.001,3899.8,3899.7,1.22617599]
[1761047930501,0.001,3899.8,3899.7,3.76483281]
[1761047931001,0.001,3899.8,3899.7,1.200533]
[1761047935509,0.001,3899.8,3899.7,0.4293]
[1761047935717,0.74342002,3899.8,3899.7,0.4293]
[1761047937328,0.001,3899.8,3899.7,0.4293]
[1761047939231,2.56523406,3899.8,3899.7,0.4293]
[1761047939432,0.001,3899.8,3899.7,0.4293]
[1761047940529,2.56523406,3899.8,3899.7,0.4293]
[1761047940898,2.56523406,3899.8,3899.4,0.1048427]
[1761047941095,2.56430227,3899.7,3899.4,0.1048427]
[1761047941301,2.56430227,3899.7,3899.4,0.002]
[1761047941705,2.56430227,3899.7,3899.5,0.223]
[1761047942633,2.56526083,3899.8,3899.5,0.223]
[1761047942812,12.060392,3899.7,3899.5,0.223]
[1761047943008,16.51658794,3899.7,3899.5,0.223]
[1761047943209,4.45619594,3899.7,3899.5,0.6846]
[1761047943414,2.56436557,3899.6,3899.4,0.002]
[1761047943639,2.56432079,3899.7,3899.4,0.002]
[1761047944239,2.56432079,3899.7,3899.4,0.4636]
[1761047945340,2.56436914,3899.6,3899.4,0.4636]
[1761047945512,2.56443133,3899.5,3899.4,0.002]
[1761047945711,3.97001966,3899.5,3899.4,0.002]
[1761047947850,9.66321986,3899.5,3899.4,0.002]
[1761047948905,11.39121986,3899.5,3899.4,0.002]
[1761047949151,5.69801966,3899.5,3899.4,0.002]
[1761047955576,3.13358833,3899.5,3899.4,0.002]
[1761047955746,1.728,3899.7,3899.4,0.4636]
[1761047956468,4.29230565,3899.7,3899.4,0.4636]
[1761047957265,2.56436609,3899.6,3899.4,0.4636]
[1761047957679,0.001,3899.5,3899.4,0.002]
[1761047957877,33.56236953,3899.5,3899.4,0.002]
[1761047958284,33.79046953,3899.5,3899.4,0.002]
[1761047958960,38.90761953,3899.5,3899.4,0.002]
[1761047959160,37.74995453,3899.5,3899.4,0.002]
[1761047959494,40.39190471,3899.5,3899.4,0.002]
[1761047959913,43.58866671,3899.5,3899.4,0.002]
[1761047960076,43.53876671,3899.5,3899.4,0.002]
[1761047961181,43.58866671,3899.5,3899.4,0.002]
[1761047961872,16.09068171,3899.5,3899.4,0.002]
[1761047962086,46.09068171,3899.5,3899.4,0.002]
[1761047962302,44.12585571,3899.5,3899.4,0.002]
[1761047962506,13.56880751,3899.5,3899.4,0.002]
[1761047962808,19.26200771,3899.5,3899.4,0.002]
[1761047963010,30.96370571,3899.5,3899.4,0.002]
[1761047963188,25.75538571,3899.5,3899.4,0.002]
[1761047964118,39.82220536,3899.5,3899.4,0.002]
[1761047964997,42.88780336,3899.5,3899.4,0.002]
[1761047965721,36.37428236,3899.5,3899.4,0.002]
[1761047965922,22.32996436,3899.5,3899.4,0.002]
[1761047966106,25.74282136,3899.5,3899.4,0.002]
[1761047966314,23.58690036,3899.5,3899.4,0.002]
[1761047966790,17.89370016,3899.5,3899.4,0.002]
[1761047966989,19.27550616,3899.5,3899.4,0.002]
[1761047967506,18.57251716,3899.5,3899.4,0.002]
[1761047968181,13.46072916,3899.5,3899.4,0.002]
[1761047969120,10.74987916,3899.5,3899.4,0.002]
[1761047969325,14.49094616,3899.5,3899.4,0.002]
[1761047969727,13.96211416,3899.5,3899.4,0.002]
[1761047970324,15.08611416,3899.5,3899.4,0.002]
[1761047971320,18.45401516,3899.5,3899.4,0.002]
[1761047971817,17.08633816,3899.5,3899.4,0.002]
[1761047971985,17.48864523,3899.5,3899.4,0.002]
[1761047972405,17.08633816,3899.5,3899.4,0.002]
[1761047972808,40.17286116,3899.5,3899.4,0.002]
[1761047973006,36.26210816,3899.5,3899.4,0.002]
[1761047973208,29.67750216,3899.5,3899.4,0.002]
[1761047973532,27.02655316,3899.5,3899.4,0.002]
[1761047973829,31.30350216,3899.5,3899.4,0.002]
[1761047974602,31.01744116,3899.5,3899.4,0.002]
[1761047974824,31.09608816,3899.5,3899.4,0.002]
[1761047975628,31.49839809,3899.5,3899.4,0.002]
[1761047975832,11.15218909,3899.5,3899.4,0.002]
[1761047976129,30.82129691,3899.5,3899.4,0.002]
[1761047977030,30.98251191,3899.5,3899.4,0.002]
[1761047977328,29.98251191,3899.5,3899.4,0.002]
[1761047977913,38.56013891,3899.5,3899.4,0.002]
[1761047978527,37.83304091,3899.5,3899.4,0.002]
[1761047978833,40.42509109,3899.5,3899.4,0.002]
[1761047979135,41.15218909,3899.5,3899.4,0.002]
[1761047979915,48.03522836,3899.5,3899.4,0.002]
[1761047980513,47.98532836,3899.5,3899.4,0.002]
[1761047982240,48.03522836,3899.5,3899.4,0.002]
[1761047982441,47.98532836,3899.5,3899.4,0.002]
[1761047984144,44.98468936,3899.5,3899.4,0.002]
[1761047985050,17.98532836,3899.5,3899.4,0.002]
[1761047985256,47.98532836,3899.5,3899.4,0.002]
[1761047986253,47.58301843,3899.5,3899.4,0.002]
[1761047990265,47.95567222,3899.5,3899.4,0.002]
[1761047992855,47.90577222,3899.5,3899.4,0.002]
[1761047994255,54.33577222,3899.5,3899.4,0.002]
[1761047994448,54.38567222,3899.5,3899.4,0.002]
[1761047996245,54.33577222,3899.5,3899.4,0.002]
[1761047996451,54.38567222,3899.5,3899.4,0.002]
[1761047999576,54.78803253,3899.5,3899.4,0.002]
[1761047999972,54.38567222,3899.5,3899.4,0.002]
[1761048000175,54.33577222,3899.5,3899.4,0.002]
[1761048001281,48.74445343,3899.5,3899.4,0.002]
[1761048001465,52.78379443,3899.5,3899.4,0.002]
[1761048001784,25.90747716,3899.5,3899.4,0.002]
[1761048001974,25.90747716,3899.5,3899.4,0.4457]
[1761048002170,27.63547716,3899.5,3899.4,0.4457]
[1761048002622,31.44212216,3899.5,3899.4,0.4457]
[1761048002901,26.94415751,3899.5,3899.4,0.4457]
[1761048003077,27.34648381,3899.5,3899.4,0.4457]
[1761048003288,26.01253281,3899.5,3899.4,0.4457]
[1761048003656,28.60060381,3899.5,3899.4,0.4457]
[1761048003964,16.70735863,3899.5,3899.4,0.4457]
[1761048004590,16.30503233,3899.5,3899.4,0.4457]
[1761048004965,43.95743133,3899.5,3899.4,0.4457]
[1761048005157,34.92694733,3899.5,3899.4,0.002]
[1761048005358,34.92694733,3899.5,3899.4,0.4457]
[1761048005554,31.93251939,3899.5,3899.4,0.4457]
[1761048005860,31.93251939,3899.5,3899.4,0.002]
[1761048006089,50.12403966,3899.5,3899.4,0.002]
[1761048006269,47.03130266,3899.5,3899.4,0.002]
[1761048006470,47.03130266,3899.5,3899.4,0.4457]
[1761048006471,27.49137466,3899.5,3899.4,0.4457]
[1761048006666,25.81664766,3899.5,3899.4,0.4457]
[1761048006882,24.81688966,3899.5,3899.4,0.4457]
[1761048007080,26.82812466,3899.5,3899.4,0.4457]
[1761048007584,26.82812466,3899.5,3899.4,0.002]
[1761048007990,51.56195002,3899.5,3899.4,0.002]
[1761048008198,52.24114506,3899.5,3899.4,0.002]
[1761048008570,52.74802506,3899.5,3899.4,0.002]
[1761048008770,47.01373106,3899.5,3899.4,0.002]
[1761048008993,46.96383106,3899.5,3899.4,0.002]
[1761048009299,48.94214206,3899.5,3899.4,0.002]
[1761048009496,48.99204206,3899.5,3899.4,0.002]
[1761048010069,52.74802506,3899.5,3899.4,0.002]
[1761048012015,3.07144287,3899.3,3899.1,0.002]
[1761048012223,0.50688,3898.8,3898.4,0.002]
[1761048012372,45.17351806,3898.7,3898.4,0.002]
[1761048012571,45.49627185,3898.7,3898.4,0.002]
[1761048013072,45.59916904,3898.7,3898.4,0.002]
[1761048013291,48.24111922,3898.7,3898.4,0.002]
[1761048013903,48.19121922,3898.7,3898.4,0.002]
[1761048014076,18.19121922,3898.7,3898.4,0.002]
[1761048014401,48.19121922,3898.7,3898.4,0.002]
[1761048015902,43.68817118,3898.7,3898.4,0.002]
[1761048016399,46.82943518,3898.7,3898.4,0.002]
[1761048016981,18.06268791,3898.7,3898.6,0.4457]
[1761048017180,3.33681075,3899.5,3898.6,0.4457]
[1761048017181,18.926374,3899.3,3898.6,0.4457]
[1761048017384,9.42518945,3899.4,3898.6,0.4457]
[1761048017385,2.56495754,3898.7,3898.6,0.4457]
[1761048017592,5.79895754,3898.7,3898.6,0.4457]
[1761048017803,10.39551254,3898.7,3898.6,0.4457]
[1761048017986,10.39551254,3898.7,3898.6,0.002]
[1761048018311,39.90867781,3898.7,3898.6,0.002]
[1761048018511,27.86968743,3898.7,3898.6,0.002]
[1761048018716,23.87326843,3898.7,3898.6,0.002]
[1761048019403,39.82905922,3898.7,3898.6,0.002]
[1761048020968,40.23146499,3898.7,3898.6,0.002]
[1761048022117,40.73834499,3898.7,3898.6,0.002]
[1761048022707,47.57148426,3898.7,3898.6,0.002]
[1761048024926,47.72428198,3898.7,3898.6,0.002]
[1761048025227,47.72428198,3898.7,3898.4,0.002]
[1761048025401,47.72428198,3898.7,3898.1,0.002]
[1761048025402,41.12642581,3898.2,3898.1,0.002]
[1761048025601,44.36142581,3898.2,3898.1,0.002]
[1761048025826,44.6841796,3898.2,3898.1,0.002]
[1761048026709,44.05872318,3898.2,3898.1,0.002]
[1761048027403,16.96118862,3897.1,3896.9,0.2309]
[1761048027604,2.56653748,3896.3,3896.2,0.2306]
[1761048027819,13.23134033,3896.3,3896.2,0.2306]
[1761048028032,7.53053748,3896.3,3896.2,0.6728]
[1761048028329,13.23134033,3896.3,3896.2,0.6728]
[1761048028623,25.24056733,3896.3,3896.2,0.6728]
[1761048028837,24.58339333,3896.3,3896.2,0.6728]
[1761048028999,16.40872433,3896.3,3896.2,0.6728]
[1761048029628,19.42982433,3896.3,3896.2,0.6728]
[1761048030707,30.91319333,3896.3,3896.2,0.6728]
[1761048031109,30.23526833,3896.3,3896.2,0.6728]
[1761048031310,30.3171138,3896.3,3896.2,0.6728]
[1761048031510,5.36663247,3896.3,3896.2,0.6728]
[1761048031738,3.64363247,3896.3,3896.2,0.6728]
[1761048031941,3.16863247,3896.3,3896.2,0.6728]
[1761048032311,3.64358148,3896.5,3896.2,0.6728]
[1761048032626,3.241,3896.7,3896.3,0.4375]
[1761048032827,2.56581737,3897.4,3896.3,0.4375]
[1761048033156,0.56058,3898.3,3896.3,0.4375]
[1761048033157,6.15853653,3897.7,3897.3,0.2324]
[1761048033439,4.2938131,3897.4,3897.3,0.2324]
[1761048033640,6.6604381,3897.4,3897.3,0.2324]
[1761048034146,16.5813811,3897.4,3897.3,0.6699]
[1761048034646,17.41997463,3897.4,3897.3,0.2324]
[1761048034810,17.41997463,3897.4,3897.3,0.6699]
[1761048035011,20.19021463,3897.4,3897.3,0.6699]
[1761048035216,4.6963656,3897.4,3897.3,0.6699]
[1761048035846,7.4460596,3897.4,3897.3,0.6699]
[1761048036049,18.7957766,3897.4,3897.3,0.6699]
[1761048036219,16.2517766,3897.4,3897.3,0.6699]
[1761048036632,15.5470906,3897.4,3897.3,0.6699]
[1761048037160,16.1418386,3897.4,3897.3,0.6699]
[1761048038130,19.3283136,3897.4,3897.3,0.6699]
[1761048038542,19.3283136,3897.4,3897.3,0.2324]
[1761048038759,13.189712,3897.2,3896.8,0.4375]
[1761048038964,2.56607859,3897.0,3896.8,0.4375]
[1761048039162,2.56614231,3896.9,3896.8,0.4375]
[1761048039463,4.29414231,3896.9,3896.8,0.4375]
[1761048039767,0.128,3896.8,3896.2,0.2306]
[1761048039925,5.70080285,3896.6,3896.2,0.2306]
[1761048040130,8.26716223,3896.6,3896.2,0.2306]
[1761048040326,8.26716223,3896.6,3896.3,0.4375]
[1761048041071,2.56641094,3896.5,3896.3,0.4375]
[1761048041567,8.26716147,3896.6,3896.3,0.4375]
[1761048042132,3.241,3896.5,3896.3,0.4375]
[1761048042454,2.56647161,3896.4,3896.3,0.4375]
[1761048042858,12.81325061,3896.4,3896.3,0.4375]
[1761048043034,13.75627029,3896.4,3896.3,0.4375]
[1761048043436,8.45504448,3896.3,3896.2,0.2306]
[1761048043735,4.42253748,3896.3,3896.2,0.2306]
[1761048044065,2.69453748,3896.3,3896.2,0.6681]
[1761048045254,8.20962748,3896.3,3896.2,0.6681]
[1761048045457,4.42253748,3896.3,3896.2,0.6681]
[1761048046937,1.856,3896.3,3896.2,0.6681]
[1761048047140,5.098,3896.3,3896.2,0.6681]
[1761048048150,0.128,3896.3,3896.2,0.6681]
[1761048050681,2.69453748,3896.3,3896.2,0.6681]
[1761048051085,0.128,3896.3,3896.2,0.6681]
[1761048052665,2.69453748,3896.3,3896.2,0.6681]
[1761048053366,12.69096348,3896.3,3896.2,0.2306]
[1761048053567,8.94704515,3896.2,3896.1,0.2324]
[1761048053978,2.56655913,3896.3,3896.1,0.2324]
[1761048054309,4.57455913,3896.3,3896.2,0.4375]
[1761048054512,1.728,3896.4,3896.2,0.4375]
[1761048054876,4.29451955,3896.4,3896.2,0.4375]
[1761048057604,2.56653748,3896.3,3896.2,0.4375]
[1761048058907,4.29447607,3896.4,3896.2,0.4375]
[1761048059111,2.56653748,3896.3,3896.2,0.4375]
[1761048059678,4.29449743,3896.4,3896.2,0.4375]
[1761048060081,2.56653748,3896.3,3896.2,0.4375]
[1761048060489,19.07585735,3896.2,3896.1,0.2324]
[1761048060686,19.07585735,3896.2,3896.1,0.6699]
[1761048060887,13.83153535,3896.2,3896.1,0.6699]
[1761048061183,2.69469474,3896.1,3895.9,0.002]
[1761048061385,6.210289,3896.1,3896.0,0.428]
[1761048062098,8.77695823,3896.1,3896.0,0.428]
[1761048063095,3.241,3896.2,3896.0,0.428]
[1761048063331,3.241,3896.2,3896.1,0.2366]
[1761048063332,4.969,3896.2,3896.1,0.2366]
[1761048063539,7.53560996,3896.2,3896.1,0.6646]
[1761048065399,7.53560996,3896.2,3896.1,0.6666]
[1761048065601,4.969,3896.2,3896.1,0.6666]
[1761048066454,7.53560335,3896.2,3896.1,0.6666]
[1761048068313,0.001,3896.3,3896.1,0.6666]
[1761048068513,0.001,3896.3,3896.2,0.428]
[1761048070395,0.001,3896.3,3896.2,0.45366603]
[1761048071654,0.001,3896.3,3896.2,0.428]
[1761048073150,0.001,3896.3,3896.1,0.2386]
[1761048073151,0.128,3896.2,3896.1,0.002]
[1761048073321,2.69460335,3896.2,3896.1,0.002]
[1761048073738,2.69460335,3896.2,3896.1,0.43]
[1761048074054,0.128,3896.2,3896.1,0.43]
[1761048074752,2.69460335,3896.2,3896.1,0.43]
[1761048075268,2.69460335,3896.2,3896.1,0.002]
[1761048075643,0.128,3896.2,3896.1,0.002]
[1761048077554,0.128,3896.2,3896.1,0.4594]
[1761048077719,0.128,3896.2,3896.1,0.002]
[1761048078234,0.128,3896.2,3896.1,0.4594]
[1761048083211,0.128,3896.2,3896.1,0.002]
[1761048083626,2.69460335,3896.2,3896.1,0.002]
[1761048083795,0.128,3896.2,3896.1,0.002]
[1761048084820,2.69460335,3896.2,3896.1,0.002]
[1761048085527,25.3642202,3896.2,3896.1,0.002]
[1761048085830,24.03563338,3896.2,3896.1,0.002]
[1761048086545,27.37797738,3896.2,3896.1,0.002]
[1761048086695,21.67717453,3896.2,3896.1,0.002]
[1761048087505,21.70760653,3896.2,3896.1,0.002]
[1761048088630,36.819358,3896.2,3896.1,0.002]
[1761048088831,20.91810432,3896.2,3896.1,0.002]
[1761048089198,17.15083532,3896.2,3896.1,0.002]
[1761048089398,17.24983532,3896.2,3896.1,0.002]
[1761048089611,30.20907132,3896.2,3896.1,0.002]
[1761048089934,25.92292532,3896.2,3896.1,0.002]
[1761048090428,17.77792832,3896.2,3896.1,0.002]
[1761048090631,20.29789632,3896.2,3896.1,0.002]
[1761048090940,19.65529632,3896.2,3896.1,0.002]
[1761048091514,7.51626932,3896.2,3896.1,0.002]
[1761048091714,29.54424732,3896.2,3896.1,0.002]
[1761048092221,27.85122932,3896.2,3896.1,0.002]
[1761048092614,24.74405632,3896.2,3896.1,0.002]
[1761048092814,18.11674332,3896.2,3896.1,0.002]
[1761048093000,16.70859832,3896.2,3896.1,0.002]
[1761048093197,12.05896232,3896.2,3896.1,0.002]
[1761048093631,13.03487332,3896.2,3896.1,0.002]
[1761048093838,12.52089432,3896.2,3896.1,0.002]
[1761048094714,19.68204832,3896.2,3896.1,0.002]
[1761048095334,15.18035332,3896.2,3896.1,0.002]
[1761048095706,18.04646232,3896.2,3896.1,0.002]
[1761048096312,17.04646232,3896.2,3896.1,0.002]
[1761048096831,17.12517432,3896.2,3896.1,0.002]
[1761048097817,17.97405932,3896.2,3896.1,0.002]
[1761048098750,17.55057732,3896.2,3896.1,0.002]
[1761048098953,17.37539832,3896.2,3896.1,0.002]
[1761048099853,27.98048732,3896.2,3896.1,0.002]
[1761048100060,24.67328732,3896.2,3896.1,0.002]
[1761048100256,24.47207232,3896.2,3896.1,0.002]
[1761048100438,20.79815432,3896.2,3896.1,0.002]
[1761048100954,30.92274632,3896.2,3896.1,0.002]
[1761048101254,8.35515497,3896.2,3896.1,0.002]
[1761048101591,8.06221914,3896.2,3896.1,0.687]
[1761048101858,0.001,3896.3,3896.1,0.687]
[1761048102028,0.001,3896.3,3896.2,0.4587]
[1761048104458,0.128,3896.2,3896.1,0.002]
[1761048104754,0.128,3896.2,3896.1,0.2283]
[1761048105163,0.128,3896.2,3896.1,0.687]
[1761048107757,0.128,3896.2,3896.1,0.2283]
[1761048107946,0.128,3896.2,3896.1,0.687]
[1761048111248,53.619033,3896.2,3896.1,0.687]
[1761048112248,56.18563635,3896.2,3896.1,0.2283]
[1761048112454,70.98157953,3896.2,3896.1,0.002]
[1761048112772,67.81802735,3896.2,3896.1,0.002]
[1761048112968,66.56731135,3896.2,3896.1,0.4607]
[1761048113167,63.76245035,3896.2,3896.1,0.4607]
[1761048113342,53.619033,3896.2,3896.1,0.4607]
[1761048113538,53.619033,3896.2,3896.1,0.687]
[1761048114673,56.18563635,3896.2,3896.1,0.687]
[1761048119189,53.619033,3896.2,3896.1,0.687]
[1761048119778,56.18563635,3896.2,3896.1,0.687]
[1761048120470,56.18563635,3896.2,3896.1,0.002]
[1761048121184,63.87164935,3896.2,3896.1,0.002]
[1761048121367,71.66396353,3896.2,3896.1,0.002]
[1761048121571,68.58730853,3896.2,3896.1,0.002]
[1761048121883,66.93669853,3896.2,3896.1,0.002]
[1761048122089,65.79669853,3896.2,3896.1,0.002]
[1761048122260,64.79669853,3896.2,3896.1,0.002]
[1761048122462,67.17156953,3896.2,3896.1,0.002]
[1761048123356,73.51321353,3896.2,3896.1,0.002]
[1761048123962,73.96927443,3896.2,3896.1,0.002]
[1761048124183,75.69727443,3896.2,3896.1,0.002]
[1761048124365,82.09678724,3896.2,3896.1,0.002]
[1761048125457,88.61730524,3896.2,3896.1,0.002]
[1761048126086,87.68922224,3896.2,3896.1,0.002]
[1761048126292,86.13486824,3896.2,3896.1,0.002]
[1761048126591,92.97940471,3896.2,3896.1,0.002]
[1761048127468,98.20890471,3896.2,3896.1,0.002]
[1761048129690,58.34170399,3896.2,3896.1,0.002]
[1761048129889,63.26564181,3896.2,3896.1,0.6682]
[1761048130403,61.53764181,3896.2,3896.1,0.6682]
[1761048131107,58.17264181,3896.2,3896.1,0.6682]
[1761048131305,57.80068581,3896.2,3896.1,0.6682]
[1761048133379,53.89365381,3896.2,3896.1,0.6682]
[1761048133578,53.491033,3896.2,3896.1,0.6682]
[1761048140925,53.491033,3896.2,3896.1,0.002]
[1761048141214,57.81108318,3896.2,3896.1,0.002]
[1761048141404,60.37768653,3896.2,3896.1,0.002]
[1761048141905,74.72283953,3896.2,3896.1,0.002]
[1761048142491,77.21913453,3896.2,3896.1,0.002]
[1761048142717,75.33205253,3896.2,3896.1,0.002]
[1761048143401,75.73467912,3896.2,3896.1,0.002]
[1761048143595,83.70763912,3896.2,3896.1,0.002]
[1761048143909,79.87019653,3896.2,3896.1,0.002]
[1761048144120,77.67515359,3896.2,3896.1,0.002]
[1761048144428,76.29032359,3896.2,3896.1,0.002]
[1761048144617,82.05482349,3896.2,3896.1,0.002]
[1761048144930,75.75512749,3896.2,3896.1,0.002]
[1761048145494,91.23456049,3896.2,3896.1,0.002]
[1761048145694,89.92354649,3896.2,3896.1,0.002]
[1761048145904,87.12539149,3896.2,3896.1,0.002]
[1761048146109,85.73937449,3896.2,3896.1,0.002]
[1761048146655,87.87126149,3896.2,3896.1,0.002]
[1761048146841,72.42366559,3896.2,3896.1,0.002]
[1761048147000,71.91964759,3896.2,3896.1,0.002]
[1761048147200,70.84537759,3896.2,3896.1,0.002]
[1761048147550,77.04008059,3896.2,3896.1,0.002]
[1761048148745,96.58409441,3896.2,3896.1,0.002]
[1761048149055,94.03675641,3896.2,3896.1,0.002]
[1761048149220,90.23892841,3896.2,3896.1,0.002]
[1761048149750,92.28439741,3896.2,3896.1,0.002]
[1761048149942,91.02333041,3896.2,3896.1,0.002]
[1761048150136,67.65142759,3896.2,3896.1,0.002]
[1761048150341,73.35622241,3896.2,3896.1,0.002]
[1761048150720,87.74333741,3896.2,3896.1,0.002]
[1761048150917,88.19759831,3896.2,3896.1,0.002]
[1761048151656,93.49723531,3896.2,3896.1,0.002]
[1761048151967,92.36723531,3896.2,3896.1,0.002]
[1761048152624,92.89201031,3896.2,3896.1,0.002]
[1761048153048,92.36347731,3896.2,3896.1,0.002]
[1761048153853,92.09683031,3896.2,3896.1,0.002]
[1761048154227,88.65686731,3896.2,3896.1,0.002]
[1761048154426,88.37498731,3896.2,3896.1,0.002]
[1761048154626,66.93935531,3896.2,3896.1,0.002]
[1761048154827,87.83126731,3896.2,3896.1,0.002]
[1761048155857,96.93935531,3896.2,3896.1,0.002]
[1761048156160,96.43166831,3896.2,3896.1,0.002]
[1761048156358,95.90313531,3896.2,3896.1,0.002]
[1761048156860,96.45739231,3896.2,3896.1,0.002]
[1761048157378,96.86004896,3896.2,3896.1,0.002]
[1761048157660,96.45739231,3896.2,3896.1,0.002]
[1761048157861,78.65785941,3896.2,3896.1,0.002]
[1761048158064,72.95306459,3896.2,3896.1,0.002]
[1761048158956,81.64515559,3896.2,3896.1,0.002]
[1761048159870,90.78029959,3896.2,3896.1,0.002]
[1761048160575,88.62014059,3896.2,3896.1,0.002]
[1761048160961,87.82872759,3896.2,3896.1,0.002]
[1761048161157,84.83004859,3896.2,3896.1,0.002]
[1761048161356,84.47004859,3896.2,3896.1,0.002]
[1761048161956,90.07415559,3896.2,3896.1,0.002]
[1761048163941,60.78029959,3896.2,3896.1,0.002]
[1761048164141,90.05415559,3896.2,3896.1,0.002]
[1761048164862,90.50841649,3896.2,3896.1,0.002]
[1761048165059,91.23456049,3896.2,3896.1,0.002]
[1761048165576,90.38690249,3896.2,3896.1,0.002]
[1761048166277,91.23456049,3896.2,3896.1,0.002]
[1761048170586,85.36862505,3896.2,3896.1,0.002]
[1761048170753,84.96596549,3896.2,3896.1,0.002]
[1761048170960,81.01814049,3896.2,3896.1,0.002]
[1761048171270,80.05739249,3896.2,3896.1,0.002]
[1761048172377,85.69964049,3896.2,3896.1,0.002]
[1761048172958,73.82319859,3896.2,3896.1,0.002]
[1761048173385,94.01629959,3896.2,3896.1,0.002]
[1761048173785,94.37156049,3896.2,3896.1,0.002]
[1761048174001,94.47056049,3896.2,3896.1,0.002]
[1761048174576,2.56673511,3896.0,3895.9,0.002]
[1761048174780,42.94684101,3896.0,3895.9,0.002]
[1761048174984,43.04584101,3896.0,3895.9,0.002]
[1761048175500,34.77806189,3895.9,3895.8,0.002]
[1761048175720,4.29486688,3895.8,3895.7,0.002]
[1761048175997,36.90497331,3895.8,3895.7,0.002]
[1761048176380,4.29513046,3895.4,3895.3,0.002]
[1761048176597,44.702792,3895.4,3895.3,0.002]
[1761048176897,20.54148918,3895.4,3895.3,0.002]
[1761048177098,15.69788328,3895.4,3895.3,0.4634]
[1761048177464,29.61080628,3895.4,3895.3,0.4634]
[1761048177667,29.24051728,3895.4,3895.3,0.4634]
[1761048177895,28.70939028,3895.4,3895.3,0.4634]
[1761048178403,13.23592528,3895.4,3895.3,0.4634]
[1761048178603,30.92905228,3895.4,3895.3,0.002]
[1761048178775,32.90840017,3895.4,3895.3,0.002]
[1761048178976,31.01477317,3895.4,3895.3,0.002]